bitfinex/quotes_SOLUSD_20251212
["timestamp","ask_amount","ask_price","bid_price","bid_amount"]
[1765524743959,7.89633243,139.35,139.31,7.17804939]
[1765524744352,0.72,139.34,139.31,7.17804939]
[1765524744960,0.72,139.38,139.33,2.76926292]
[1765524745165,0.72,139.37,139.34,2.76926292]
[1765524746049,0.72,139.37,139.33,9.94646811]
[1765524748463,0.72,139.37,139.33,27.8894811]
[1765524750485,0.72,139.37,139.33,25.12021818]
[1765524752665,0.72,139.37,139.32,12.28920784]
[1765524752666,7.8951983,139.37,139.32,7.17749773]
[1765524752866,10.66446122,139.37,139.32,7.17749773]
[1765524753075,0.72,139.36,139.32,7.17749773]
[1765524753572,0.72,139.36,139.31,20.71419782]
[1765524753573,7.86,139.35,139.31,7.17818791]
[1765524753774,7.86,139.35,139.31,7.17795655]
[1765524754095,7.86,139.35,139.32,7.17767979]
[1765524754096,0.72,139.34,139.32,7.17767979]
[1765524754675,0.72,139.34,139.31,7.17823558]
[1765524754870,0.72,139.34,139.31,9.9474985]
[1765524755583,7.86,139.35,139.32,2.76926292]
[1765524755783,8.58,139.35,139.32,2.76926292]
[1765524756091,7.86,139.35,139.32,2.76926292]
[1765524756294,0.72,139.34,139.32,2.76926292]
[1765524756787,0.72,139.34,139.33,7.17720519]
[1765524758991,0.72,139.34,139.32,7.17772035]
[1765524761079,7.86,139.35,139.32,25.83202124]
[1765524761278,7.86,139.35,139.32,28.60128416]
[1765524761602,7.86,139.35,139.33,3.47926292]
[1765524761768,0.72,139.37,139.33,3.47926292]
[1765524762172,0.72,139.37,139.34,2.76926292]
[1765524762379,0.72,139.37,139.33,3.47926292]
[1765524763393,0.72,139.37,139.34,7.17669011]
[1765524765502,0.72,139.37,139.34,0.7]
[1765524765683,0.66,139.38,139.35,2.76926292]
[1765524765881,0.66,139.41,139.36,15.81635412]
[1765524766596,0.66,139.41,139.36,16.51635412]
[1765524767191,0.66,139.41,139.37,7.17514529]
[1765524768804,7.83314325,139.41,139.37,7.17514529]
[1765524769013,0.66,139.4,139.37,7.17514529]
[1765524770989,0.66,139.4,139.37,7.87514529]
[1765524771203,0.66,139.4,139.37,7.17514529]
[1765524775217,18.46009791,139.42,139.38,0.7]
[1765524775430,0.66,139.41,139.38,0.7]
[1765524775605,0.66,139.41,139.37,9.94245269]
[1765524775808,0.66,139.41,139.37,10.64245269]
[1765524776835,7.83349622,139.41,139.37,7.17514529]
[1765524777004,7.83349622,139.41,139.34,13.82857803]
[1765524777005,2.7673074,139.4,139.35,7.175751]
[1765524777206,0.66,139.4,139.35,7.175751]
[1765524777431,25.10621266,139.41,139.35,7.175751]
[1765524777432,0.66,139.39,139.35,7.175751]
[1765524777625,0.66,139.4,139.37,2.7673074]
[1765524777806,0.66,139.41,139.37,2.7673074]
[1765524778003,3.71163054,139.41,139.35,2.7673074]
[1765524778311,7.17360114,139.4,139.36,7.17558654]
[1765524778622,7.83360114,139.4,139.36,7.17558654]
[1765524778811,0.66,139.39,139.36,7.17558654]
[1765524779916,7.83421244,139.39,139.36,7.17558654]
[1765524780117,7.83421244,139.39,139.35,7.17599266]
[1765524780316,0.66,139.38,139.35,7.17599266]
[1765524781233,0.66,139.4,139.37,2.7673074]
[1765524781542,0.66,139.4,139.37,3.4673074]
[1765524781718,0.66,139.4,139.36,2.7673074]
[1765524781922,10.6013571,139.4,139.35,7.17599266]
[1765524782111,7.86,139.39,139.35,7.17599266]
[1765524782310,8.52,139.39,139.35,9.94330006]
[1765524782511,0.66,139.38,139.35,9.94330006]
[1765524783635,0.66,139.38,139.35,7.17599266]
[1765524789225,7.83476545,139.38,139.34,7.17654438]
[1765524789628,7.83476545,139.38,139.33,20.22408878]
[1765524789629,0.66,139.37,139.33,20.22408878]
[1765524790924,7.83527784,139.37,139.33,20.22408878]
[1765524791445,0.66,139.36,139.33,20.22408878]
[1765524793753,7.8356833,139.36,139.33,7.17699758]
[1765524794052,0.66,139.36,139.33,7.17699758]
[1765524794350,0.71,139.35,139.32,25.12119764]
[1765524794639,0.71,139.35,139.32,25.83119764]
[1765524795825,0.71,139.35,139.32,25.12119764]
[1765524796233,0.71,139.35,139.32,25.83119764]
[1765524797118,0.71,139.35,139.32,25.12119764]
[1765524797321,0.71,139.35,139.32,25.83119764]
[1765524800140,0.71,139.35,139.32,7.17772035]
[1765524800353,0.71,139.35,139.32,13.14629838]
[1765524802048,7.88622567,139.35,139.32,13.14629838]
[1765524802257,4.32688527,139.34,139.31,5.96857803]
[1765524802448,0.66,139.34,139.3,5.96857803]
[1765524802642,0.66,139.33,139.3,5.96857803]
[1765524802843,4.98688527,139.33,139.29,13.14755105]
[1765524803028,4.98688527,139.33,139.29,7.17897302]
[1765524803334,0.66,139.32,139.28,13.14821159]
[1765524803542,4.98688527,139.32,139.28,7.17963356]
[1765524803737,0.66,139.32,139.28,7.17963356]
[1765524803934,0.66,139.31,139.28,7.17963356]
[1765524807554,12.16855083,139.31,139.25,19.67566923]
[1765524807858,12.16855083,139.31,139.26,7.18060424]
[1765524808052,0.66,139.3,139.26,7.18060424]
[1765524811059,7.83878095,139.3,139.26,7.18060424]
[1765524811438,0.66,139.29,139.26,7.18060424]
[1765524812374,7.83972712,139.29,139.24,4.33010779]
[1765524812534,7.83972712,139.29,139.24,4.99010779]
[1765524812735,0.66,139.28,139.24,4.99010779]
[1765524812956,0.66,139.28,139.24,4.33010779]
[1765524813259,0.66,139.28,139.25,7.84125255]
[1765524813860,7.83981502,139.28,139.24,7.84179549]
[1765524814034,4.99010779,139.27,139.21,22.94786576]
[1765524814541,4.99010779,139.26,139.21,7.8432946]
[1765524814735,4.99010779,139.26,139.21,7.1832946]
[1765524814928,0.66,139.25,139.21,7.1832946]
[1765524815137,0.66,139.25,139.2,7.18362038]
[1765524815345,7.18184429,139.24,139.2,7.18362038]
[1765524815745,4.99010779,139.23,139.19,0.2]
[1765524816030,0.66,139.22,139.19,8.04428735]
[1765524816236,0.66,139.23,139.19,12.37439514]
[1765524816637,7.84152004,139.25,139.2,4.99010779]
[1765524816851,0.66,139.24,139.21,4.99010779]
[1765524817869,0.66,139.24,139.22,7.18287602]
[1765524820555,4.33010779,139.26,139.23,0.66]
[1765524820556,0.66,139.26,139.23,0.66]
[1765524821463,0.66,139.26,139.22,11.51298381]
[1765524821765,0.66,139.26,139.22,12.17298381]
[1765524822267,0.66,139.26,139.22,7.84287602]
[1765524823269,7.84099336,139.26,139.22,7.84287602]
[1765524823868,0.71,139.25,139.22,7.84287602]
[1765524829869,0.71,139.27,139.23,0.71]
[1765524830042,11.51010805,139.28,139.23,0.71]
[1765524830043,0.71,139.26,139.23,0.71]
[1765524830969,0.71,139.26,139.23,7.89191637]
[1765524831167,7.89097029,139.26,139.22,7.18269823]
[1765524831469,7.89097029,139.26,139.22,7.89269823]
[1765524831690,0.71,139.25,139.22,7.89269823]
[1765524832366,0.71,139.25,139.23,7.18226848]
[1765524832672,0.71,139.26,139.23,7.89226848]
[1765524832865,0.71,139.26,139.23,0.71]
[1765524833067,7.8909527,139.26,139.22,5.04010779]
[1765524833572,0.71,139.25,139.22,5.04010779]
[1765524833747,0.71,139.25,139.22,0.71]
[1765524834366,0.71,139.25,139.23,7.18234239]
[1765524842074,0.71,139.27,139.23,7.89234239]
[1765524843496,0.71,139.27,139.23,7.18234239]
[1765524843990,7.89064739,139.27,139.23,7.18234239]
[1765524844686,0.71,139.26,139.23,7.18234239]
[1765524846794,4.61766568,139.28,139.23,7.18234239]
[1765524846795,30.99308554,139.31,139.25,4.33334254]
[1765524846971,0.71,139.3,139.26,4.33334254]
[1765524847593,0.71,139.3,139.25,5.04334254]
[1765524847895,7.88903234,139.3,139.26,7.18081286]
[1765524848371,0.71,139.29,139.26,7.18081286]
[1765524849004,4.33334254,139.28,139.23,10.30536982]
[1765524849169,12.2228991,139.29,139.23,10.30536982]
[1765524849369,0.71,139.28,139.24,7.18152064]
[1765524850514,0.71,139.28,139.24,11.51486318]
[1765524850800,0.71,139.28,139.25,7.18122125]
[1765524851364,7.88986992,139.28,139.25,7.18122125]
[1765524851875,0.71,139.27,139.25,7.18122125]
[1765524853298,0.71,139.27,139.24,11.51518683]
[1765524854005,0.71,139.27,139.24,9.9542818]
[1765524854402,0.71,139.27,139.24,10.6042818]
[1765524855315,0.71,139.27,139.24,7.83184429]
[1765524855611,0.71,139.27,139.24,10.6042818]
[1765524856606,7.89035949,139.27,139.24,7.18184429]
[1765524856783,10.662797,139.27,139.23,7.18210176]
[1765524857112,0.71,139.26,139.23,7.18210176]
[1765524858110,0.71,139.26,139.24,7.18180688]
[1765524859280,0.71,139.26,139.23,7.8921058]
[1765524859801,7.89106259,139.26,139.22,7.1826213]
[1765524860003,2.77243751,139.25,139.2,26.20271591]
[1765524860186,3.48243751,139.25,139.2,7.18359743]
[1765524860386,0.71,139.24,139.2,7.18359743]
[1765524860590,7.89184822,139.24,139.2,7.18359743]
[1765524860792,7.89184822,139.24,139.2,7.89359743]
[1765524861094,0.71,139.23,139.2,7.18359743]
[1765524862012,0.71,139.23,139.2,7.89359743]
[1765524866322,0.71,139.23,139.2,7.18359743]
[1765524866822,7.89254738,139.23,139.2,7.18359743]
[1765524867318,0.71,139.23,139.2,7.18359743]
[1765524867512,9.95667067,139.24,139.2,7.18359743]
[1765524867712,0.71,139.23,139.2,7.18359743]
[1765524869026,0.71,139.23,139.2,7.89359743]
[1765524871420,0.71,139.23,139.2,7.18359743]
[1765524871620,18.09593217,139.27,139.22,2.77460148]
[1765524871921,0.71,139.28,139.23,27.9128619]
[1765524872221,0.71,139.28,139.23,28.6228619]
[1765524872416,0.71,139.28,139.24,0.71]
[1765524873295,0.71,139.28,139.25,7.18132854]
[1765524874006,0.71,139.28,139.25,7.89132854]
[1765524875008,0.71,139.28,139.25,7.18132854]
[1765524880834,0.71,139.3,139.26,3.48460148]
[1765524881200,0.71,139.3,139.27,0.71]
[1765524881704,0.71,139.3,139.26,3.48460148]
[1765524881904,0.71,139.3,139.27,7.18029726]
[1765524882534,7.88875665,139.3,139.26,7.89060196]
[1765524883035,0.72,139.29,139.26,7.89060196]
[1765524884634,7.17875665,139.3,139.27,0.71]
[1765524884931,7.89875665,139.3,139.27,0.71]
[1765524885126,7.17875665,139.3,139.27,0.71]
[1765524885335,0.72,139.29,139.26,3.48460148]
[1765524887535,0.72,139.29,139.26,10.66496145]
[1765524888225,0.72,139.29,139.26,7.89035997]
[1765524888425,0.72,139.29,139.26,10.66496145]
[1765524890035,0.72,139.29,139.26,7.89035997]
[1765524890436,0.72,139.29,139.26,10.66496145]
[1765524892240,0.72,139.29,139.26,7.89035997]
[1765524892536,0.72,139.29,139.26,10.66496145]
[1765524894244,0.72,139.29,139.26,7.89035997]
[1765524894540,0.72,139.29,139.26,10.66496145]
[1765524896215,0.72,139.29,139.26,7.89035997]
[1765524896424,0.72,139.29,139.26,10.66496145]
[1765524898944,0.72,139.29,139.26,10.66180136]
[1765524901024,0.72,139.31,139.27,3.48144139]
[1765524901225,0.72,139.31,139.28,0.71]
[1765524901442,0.72,139.32,139.3,2.77144139]
[1765524902031,7.17566016,139.36,139.31,3.48144139]
[1765524902239,0.72,139.38,139.34,2.77144139]
[1765524902441,0.72,139.38,139.36,9.94700516]
[1765524902957,17.93052257,139.43,139.37,3.48144139]
[1765524903245,20.71305652,139.44,139.37,3.48144139]
[1765524903246,0.72,139.41,139.37,0.71]
[1765524903425,0.72,139.41,139.37,3.48144139]
[1765524903829,0.72,139.41,139.36,10.65700516]
[1765524904250,2.77144139,139.4,139.35,7.17605743]
[1765524904546,0.72,139.39,139.35,7.17605743]
[1765524904845,2.77144139,139.38,139.32,3.48144139]
[1765524905024,2.77144139,139.38,139.33,7.17684966]
[1765524905225,0.72,139.37,139.33,7.17684966]
[1765524905449,0.72,139.37,139.34,7.1766623]
[1765524907552,7.89522359,139.37,139.33,7.8869892]
[1765524907944,0.72,139.36,139.33,7.8869892]
[1765524908139,0.72,139.36,139.33,7.1769892]
[1765524908547,0.72,139.36,139.33,7.8869892]
[1765524910527,0.72,139.38,139.34,3.48144139]
[1765524910930,0.72,139.38,139.34,16.52853259]
[1765524911153,0.72,139.38,139.35,2.77144139]
[1765524911825,0.72,139.38,139.34,16.52853259]
[1765524912250,0.72,139.38,139.35,7.17617509]
[1765524912754,7.89463937,139.38,139.35,7.17617509]
[1765524912944,0.72,139.38,139.35,7.17617509]
[1765524913143,0.72,139.37,139.35,7.17617509]
[1765524914728,4.60978152,139.42,139.36,4.97545838]
[1765524914929,0.72,139.39,139.36,4.97545838]
[1765524916064,0.72,139.39,139.37,7.17514529]
[1765524917431,7.17271958,139.42,139.37,7.84514529]
[1765524917630,0.68,139.41,139.37,7.84514529]
[1765524919664,0.68,139.41,139.37,7.17514529]
[1765524920535,0.68,139.41,139.37,7.84514529]
[1765524921247,7.85310176,139.41,139.37,7.84514529]
[1765524921451,0.68,139.4,139.37,7.84514529]
[1765524924166,0.68,139.4,139.37,12.17060367]
[1765524926674,0.68,139.4,139.37,7.84514529]
[1765524926976,0.68,139.4,139.37,12.17060367]
[1765524927668,7.85267377,139.42,139.38,0.67]
[1765524928146,0.68,139.41,139.38,4.99545838]
[1765524929376,0.68,139.41,139.38,12.16967499]
[1765524929875,0.68,139.41,139.38,7.17421661]
[1765524930078,0.68,139.42,139.39,0.67]
[1765524930278,0.68,139.41,139.38,7.17421661]
[1765524930482,0.68,139.41,139.38,7.84421661]
[1765524931779,0.68,139.41,139.38,7.17421661]
[1765524933986,7.17225915,139.43,139.39,0.67]
[1765524934155,0.68,139.42,139.39,4.99373311]
[1765524934355,0.68,139.42,139.38,11.49794972]
[1765524934567,0.68,139.42,139.38,12.16794972]
[1765524935181,7.8526196,139.42,139.38,12.16794972]
[1765524935572,0.68,139.41,139.38,12.16794972]
[1765524936188,0.68,139.41,139.38,7.84421661]
[1765524938659,7.85316391,139.41,139.38,0.67]
[1765524938857,7.85316391,139.41,139.37,7.84496452]
[1765524939061,0.68,139.4,139.37,7.84496452]
[1765524939261,7.17316391,139.41,139.37,7.17496452]
[1765524939484,7.17316391,139.41,139.38,7.84452556]
[1765524939784,7.85316391,139.41,139.38,7.84452556]
[1765524939982,0.68,139.4,139.37,7.17493089]
[1765524940158,0.68,139.4,139.37,7.84493089]
[1765524942801,7.85370636,139.4,139.37,0.67]
[1765524943885,8.80994492,139.35,139.28,6.02085709]
[1765524944060,13.0470912,139.36,139.28,6.02085709]
[1765524944061,4.32373311,139.34,139.29,7.88923629]
[1765524944488,0.68,139.34,139.3,0.71]
[1765524944669,0.68,139.34,139.3,5.03373311]
[1765524945186,0.68,139.34,139.31,0.71]
[1765524945560,7.17720519,139.33,139.29,7.88923629]
[1765524945982,7.85720519,139.33,139.29,7.88923629]
[1765524948293,0.68,139.32,139.29,7.88923629]
[1765524950303,7.85784192,139.32,139.27,13.7570912]
[1765524950475,4.32373311,139.3,139.26,7.18065136]
[1765524950676,4.32373311,139.27,139.23,0.2]
[1765524951078,0.68,139.26,139.23,0.91]
[1765524951589,5.00373311,139.26,139.23,0.91]
[1765524951820,0.68,139.26,139.23,8.09229326]
[1765524952597,12.18469659,139.26,139.23,0.2]
[1765524953092,0.68,139.25,139.23,0.2]
[1765524953391,5.00373311,139.25,139.23,0.2]
[1765524953768,0.68,139.24,139.23,0.2]
[1765524955290,12.1855774,139.24,139.23,0.2]
[1765524956128,12.46990054,139.24,139.23,0.2]
[1765524956425,43.55818931,139.24,139.19,0.2]
[1765524956594,4.32373311,139.2,139.19,0.2]
[1765524957114,0.68,139.2,139.19,0.2]
[1765524958214,5.00373311,139.2,139.19,0.2]
[1765524958421,12.18764115,139.2,139.19,0.2]
[1765524959229,7.86390804,139.2,139.19,0.2]
[1765524959432,12.18764115,139.2,139.19,0.2]
[1765524961196,12.47196429,139.2,139.19,0.2]
[1765524961392,4.32373311,139.2,139.19,0.2]
[1765524961617,13.13367803,139.2,139.19,0.2]
[1765524961837,13.13367803,139.19,139.18,0.2]
[1765524962227,13.15114463,139.19,139.18,0.2]
[1765524962608,20.33556879,139.19,139.18,0.2]
[1765524962805,11.52562387,139.19,139.18,0.2]
[1765524963423,25.53703821,139.19,139.18,0.2]
[1765524964940,34.34698313,139.19,139.18,0.2]
[1765524965308,34.34698313,139.19,139.15,0.2]
[1765524965309,0.28432314,139.17,139.15,0.2]
[1765524965540,4.34119971,139.16,139.15,0.2]
[1765524965836,5.02119971,139.16,139.15,0.2]
[1765524967031,12.20717269,139.16,139.15,0.2]
[1765524973132,7.86597298,139.16,139.15,0.2]
[1765524973325,12.20717269,139.16,139.15,0.2]
[1765524975432,12.49149583,139.16,139.15,0.2]
[1765524975630,19.88001081,139.16,139.15,0.2]
[1765524976032,18.31741741,139.16,139.15,0.2]
[1765524978537,42.95305984,139.16,139.15,0.2]
[1765524979934,40.17445353,139.16,139.15,0.2]
[1765524983248,42.95305984,139.16,139.15,0.2]
[1765524985143,40.17445353,139.16,139.15,0.2]
[1765524986348,31.36450861,139.16,139.15,0.2]
[1765524989153,30.68450861,139.16,139.15,0.2]
[1765524989731,31.35450861,139.16,139.15,0.2]
[1765524990445,14.57448796,139.16,139.15,0.87]
[1765524990623,7.18568098,139.17,139.15,0.87]
[1765524990817,7.18568098,139.17,139.16,0.67]
[1765524992029,9.96428729,139.17,139.16,0.67]
[1765524993273,7.18568098,139.17,139.16,0.67]
[1765524993583,7.18510735,139.18,139.16,0.67]
[1765524999774,2.77672739,139.18,139.16,0.67]
[1765524999976,2.77672739,139.17,139.15,0.2]
[1765525000177,2.77672739,139.17,139.16,0.67]
[1765525000476,2.77672739,139.17,139.15,0.2]
[1765525000647,2.77672739,139.17,139.15,0.87]
[1765525001786,9.96269683,139.17,139.15,0.87]
[1765525002474,3.58888896,139.16,139.15,0.2]
[1765525003282,3.73105053,139.16,139.15,0.2]
[1765525003860,10.91702351,139.16,139.15,0.2]
[1765525010775,19.72696843,139.16,139.15,0.2]
[1765525011486,22.60456276,139.16,139.15,0.2]
[1765525017970,25.38129015,139.16,139.15,0.2]
[1765525021602,21.85703612,139.13,139.12,1e-08]
[1765525021896,8.80994492,139.12,139.11,0.2]
[1765525022092,12.25667231,139.12,139.11,0.2]
[1765525022905,19.44471141,139.12,139.11,0.2]
[1765525023200,22.60725005,139.12,139.11,1e-08]
[1765525024602,0.28432314,139.11,139.1,0.2]
[1765525024783,12.54099545,139.11,139.1,0.2]
[1765525024985,19.73443112,139.11,139.1,0.2]
[1765525025194,10.2544862,139.11,139.1,0.2]
[1765525025402,13.13290882,139.11,139.1,0.2]
[1765525025775,13.13290882,139.11,139.1,0.9]
[1765525025990,12.84858568,139.11,139.1,0.9]
[1765525026203,7.18855581,139.11,139.1,0.9]
[1765525026383,9.97016306,139.11,139.1,0.9]
[1765525027104,9.97016306,139.11,139.1,0.2]
[1765525027282,9.97016306,139.11,139.1,0.9]
[1765525028305,10.2544862,139.11,139.1,0.9]
[1765525028498,10.2544862,139.11,139.1,0.2]
[1765525028800,19.73443112,139.11,139.1,0.2]
[1765525033991,19.06443112,139.11,139.1,0.2]
[1765525034316,19.73443112,139.11,139.1,0.2]
[1765525035593,22.61306089,139.11,139.1,0.2]
[1765525035927,22.61306089,139.11,139.09,0.2]
[1765525035928,9.09426806,139.1,139.09,0.2]
[1765525036084,15.37748256,139.1,139.08,0.2]
[1765525036427,2.78160725,139.03,139.02,0.76]
[1765525036786,13.0470912,139.05,139.02,0.76]
[1765525036991,9.97398082,139.04,139.02,0.76]
[1765525037890,11.53991373,139.04,139.02,0.76]
[1765525038411,4.34754016,139.03,139.02,0.76]
[1765525040024,11.54023238,139.03,139.02,0.76]
[1765525040212,7.19269222,139.03,139.02,0.76]
[1765525040610,11.54023238,139.03,139.02,0.76]
[1765525042423,25.6720406,139.03,139.02,1e-08]
[1765525042793,38.7191318,139.03,139.02,1e-08]
[1765525043695,33.68159164,139.03,139.02,1e-08]
[1765525043916,21.21410656,139.03,139.02,1e-08]
[1765525044117,24.87164672,139.03,139.02,1e-08]
[1765525044303,24.87164672,139.03,139.02,0.67000001]
[1765525045404,24.87164672,139.03,139.02,1e-08]
[1765525045706,25.56164672,139.03,139.02,1e-08]
[1765525046317,34.37159164,139.03,139.02,1e-08]
[1765525046523,25.6720406,139.03,139.02,1e-08]
[1765525046824,25.6720406,139.03,139.0,0.1]
[1765525046825,21.85703612,139.01,139.0,0.1]
[1765525047130,0.28432314,138.99,138.96,0.1]
[1765525047422,26.48889942,138.97,138.96,0.1]
[1765525047814,30.06022482,138.97,138.96,0.1]
[1765525048202,37.25602247,138.97,138.96,0.1]
[1765525048521,9.09426806,138.96,138.95,0.1]
[1765525048733,18.47934838,138.96,138.95,0.1]
[1765525049197,13.44180822,138.96,138.95,0.1]
[1765525049397,14.13180822,138.96,138.95,0.1]
[1765525049822,9.09426806,138.96,138.95,0.1]
[1765525050011,4.6318633,138.96,138.95,0.1]
[1765525051029,4.6318633,138.96,138.95,0.77]
[1765525052410,0.28432314,138.96,138.95,0.77]
[1765525052907,20.24479917,138.97,138.95,0.77]
[1765525053219,24.59233933,138.97,138.95,0.77]
[1765525054004,20.24479917,138.97,138.95,0.77]
[1765525055107,0.28432314,138.98,138.95,7.96675591]
[1765525055314,7.48164111,138.98,138.95,7.96675591]
[1765525055514,7.48164111,138.98,138.96,0.67]
[1765525056608,13.0470912,138.99,138.96,7.86615369]
[1765525057008,20.34384711,138.99,138.97,0.67]
[1765525057515,11.82984926,139.0,138.97,0.67]
[1765525057516,7.19439723,139.0,138.97,0.67]
[1765525057711,14.39055092,139.0,138.97,0.67]
[1765525058331,7.19439723,139.0,138.97,0.67]
[1765525058631,7.19615369,138.99,138.97,0.67]
[1765525060039,7.19615369,138.99,138.97,7.8656914]
[1765525060222,20.38301368,139.01,138.98,0.67]
[1765525060528,7.8656914,139.0,138.98,0.67]
[1765525061230,18.66841704,139.06,138.99,4.35112889]
[1765525061434,7.19165767,139.05,139.01,4.35112889]
[1765525061619,25.28297658,139.05,139.02,5.02112889]
[1765525061819,25.28297658,139.05,139.03,0.67]
[1765525062409,7.19165767,139.05,139.03,0.67]
[1765525062630,7.19361273,139.05,139.03,5.02112889]
[1765525062838,7.19361273,139.05,139.0,17.98493779]
[1765525063012,7.19361273,139.05,138.97,57.83574345]
[1765525063013,15.08543297,139.05,139.01,0.67]
[1765525063206,7.89182024,139.05,139.01,0.67]
[1765525063407,7.19182024,139.05,139.01,0.67]
[1765525063630,25.86913715,139.05,139.01,0.67]
[1765525064633,25.16913715,139.05,139.01,7.86368263]
[1765525065020,25.16913715,139.05,139.02,0.72]
[1765525065220,30.22026604,139.05,139.02,0.72]
[1765525066036,7.19182024,139.05,139.02,0.72]
[1765525068528,7.19367311,139.05,139.03,4.35112889]
[1765525068729,7.19367311,139.05,139.02,12.26417095]
[1765525068913,7.19367311,139.05,139.03,0.72]
[1765525069108,7.19065913,139.07,139.03,0.72]
[1765525069314,7.89065913,139.07,139.03,0.72]
[1765525069514,33.8346192,139.07,139.03,0.72]
[1765525069943,29.48349031,139.07,139.03,0.72]
[1765525071143,29.48349031,139.07,139.03,7.91266282]
[1765525071334,29.48349031,139.07,139.04,0.72]
[1765525072516,28.78349031,139.07,139.04,0.72]
[1765525072938,29.48349031,139.07,139.04,0.72]
[1765525075142,0.28432314,139.04,139.0,0.72]
[1765525075357,4.63545203,139.04,139.0,0.72]
[1765525075649,5.33545203,139.04,139.0,0.72]
[1765525075946,18.38254323,139.04,139.0,0.72]
[1765525076259,25.57497803,139.04,139.0,7.91416984]
[1765525076541,25.57497803,139.04,139.01,0.72]
[1765525078642,8.17675794,139.04,139.01,0.72]
[1765525078841,30.51721104,139.04,139.01,0.72]
[1765525079838,12.52788683,139.04,139.01,0.72]
[1765525080139,7.19458598,139.03,139.01,0.72]
[1765525081145,8.17675794,139.04,139.01,0.72]
[1765525081313,12.52788683,139.04,139.01,0.72]
[1765525081518,19.72209255,139.04,139.01,0.72]
[1765525081946,15.37096366,139.04,139.01,0.72]
[1765525082145,19.72209255,139.04,139.01,0.72]
[1765525082359,15.37096366,139.04,139.01,0.72]
[1765525082646,19.72209255,139.04,139.01,0.72]
[1765525083043,12.52788683,139.04,139.01,0.72]
[1765525083755,7.19420572,139.03,139.01,0.72]
[1765525090258,12.52449239,139.04,139.01,0.72]
[1765525093058,4.34773445,139.02,138.99,0.67]
[1765525093465,5.03773445,139.02,138.99,0.67]
[1765525093834,4.63205759,139.01,138.95,4.44773445]
[1765525094039,4.34773445,139.0,138.96,7.86627323]
[1765525094657,0.97432314,139.01,138.97,7.86567986]
[1765525094953,5.32205759,139.01,138.97,7.86567986]
[1765525095142,5.32205759,139.01,138.98,0.67]
[1765525095935,12.51616658,139.01,138.98,0.67]
[1765525096253,8.16843213,139.01,138.98,0.67]
[1765525097646,7.19342795,139.02,138.98,7.86519306]
[1765525098044,7.19342795,139.02,138.99,0.7]
[1765525099037,4.34773445,139.0,138.97,0.7]
[1765525099252,4.34773445,138.99,138.95,0.1]
[1765525099449,4.34773445,138.99,138.97,0.7]
[1765525099671,4.34773445,139.0,138.97,0.7]
[1765525099964,2.78455784,138.99,138.97,0.7]
[1765525101533,7.86445802,139.0,138.97,0.7]
[1765525101746,2.78455784,138.99,138.97,0.7]
[1765525102184,10.64946957,138.99,138.96,0.7]
[1765525102350,0.67,138.98,138.95,0.1]
[1765525102542,3.45455784,138.98,138.95,0.8]
[1765525103544,2.78455784,138.97,138.95,0.8]
[1765525103771,3.45455784,138.97,138.95,0.1]
[1765525103966,0.28432314,138.98,138.95,0.1]
[1765525103967,3.45455784,138.96,138.95,0.1]
[1765525104155,7.86631548,138.96,138.95,0.1]
[1765525104351,10.65087332,138.96,138.95,0.1]
[1765525104868,19.74514138,138.96,138.95,0.1]
[1765525105256,10.93519646,138.96,138.95,0.1]
[1765525105646,19.74514138,138.96,138.95,0.1]
[1765525107973,2.78455784,138.96,138.95,0.1]
[1765525109844,25.5959171,138.96,138.95,0.1]
[1765525110040,32.79223258,138.96,138.95,0.1]
[1765525110760,0.28432314,138.95,138.89,0.1]
[1765525110966,2.78455784,138.9,138.89,0.1]
[1765525111271,9.9836094,138.91,138.89,0.8]